bitfinex-derivatives/quotes_ETHF0:USTF0_20250116
["timestamp","ask_amount","ask_price","bid_price","bid_amount"]
[1737045398964,0.59735,3348.6,3348.5,0.29086717]
[1737045399263,3.2078,3349.1,3348.8,0.5973]
[1737045399468,3.2078,3349.1,3348.9,0.29071493]
[1737045399670,0.59732,3348.8,3348.6,0.5274]
[1737045399969,0.59732,3348.8,3348.7,0.2907481]
[1737045400466,6.12084725,3349.1,3347.9,3.2078]
[1737045400761,0.59744,3348.1,3348.0,0.29100575]
[1737045400959,0.59744,3348.1,3347.5,0.5231]
[1737045400960,0.59753,3347.6,3347.5,0.5231]
[1737045401168,3.80533,3347.6,3347.5,0.29120253]
[1737045401564,3.2078,3347.6,3347.5,0.29120253]
[1737045401864,3.2078,3347.6,3347.5,3.80179978]
[1737045402262,3.747,3348.2,3347.5,3.20424978]
[1737045402464,0.59748,3347.9,3347.7,0.5975]
[1737045402659,0.59748,3347.9,3347.8,0.29120253]
[1737045402864,3.747,3348.2,3347.8,0.88869253]
[1737045403062,0.59746,3348.0,3347.9,0.29120253]
[1737045403464,6.66004725,3348.2,3347.0,1.12073]
[1737045403665,0.526,3347.9,3347.1,0.29094222]
[1737045403861,0.59758,3347.3,3347.2,0.29094222]
[1737045405671,3.80538,3347.3,3347.2,0.29094222]
[1737045405870,3.2078,3347.3,3346.5,0.5519]
[1737045406061,3.2078,3347.3,3346.6,0.29079687]
[1737045406270,0.59765,3347.0,3346.7,0.29079687]
[1737045406467,0.59765,3347.0,3346.6,0.5977]
[1737045406468,0.59765,3346.9,3346.8,0.29079687]
[1737045407178,0.5619,3347.2,3346.5,0.5519]
[1737045407376,0.59766,3346.9,3346.6,0.88818326]
[1737045407578,0.5619,3347.2,3346.7,0.29048326]
[1737045407778,0.59766,3346.9,3346.6,0.5977]
[1737045407974,0.59766,3346.9,3346.7,0.29046402]
[1737045408167,0.59766,3346.9,3346.7,0.59768]
[1737045408880,0.59764,3347.0,3346.8,0.59767]
[1737045409072,0.5619,3347.2,3346.5,0.5519]
[1737045409272,0.59764,3347.0,3346.7,0.59769]
[1737045409473,0.59766,3346.9,3346.7,0.59769]
[1737045409684,0.59766,3346.9,3346.8,0.46003051]
[1737045410379,3.80546,3346.9,3346.8,0.46003051]
[1737045410678,1.49428,3346.6,3345.5,4.51455905]
[1737045410884,0.59787,3345.7,3345.6,0.29011586]
[1737045411072,1.49441,3346.3,3345.5,4.51455905]
[1737045411073,3.2078,3345.9,3345.5,4.51455905]
[1737045411278,3.80564,3345.9,3345.6,0.59788]
[1737045411484,3.2078,3345.9,3345.6,0.59788]
[1737045411779,0.59786,3345.8,3345.5,5.11244905]
[1737045412079,3.80563,3345.9,3345.6,0.59788]
[1737045412471,3.80563,3345.9,3345.4,1.0589]
[1737045412673,3.80563,3345.9,3345.6,0.59787]
[1737045412874,3.80563,3345.9,3345.7,0.59787]
[1737045413074,3.2078,3345.9,3345.8,0.59785]
[1737045415079,3.80548,3346.8,3346.5,0.59772]
[1737045415387,3.2078,3346.8,3346.1,1.298]
[1737045415575,0.59771,3346.6,3346.3,0.59774]
[1737045415778,3.2078,3346.8,3346.7,0.59769]
[1737045416786,3.80541,3347.2,3346.6,3.2078]
[1737045416986,0.59763,3347.1,3346.6,3.2078]
[1737045417185,0.59763,3347.1,3346.8,0.59766]
[1737045417389,3.80541,3347.2,3347.0,0.59763]
[1737045417684,3.2078,3347.2,3346.8,0.59765]
[1737045417885,3.2078,3347.2,3346.4,2.04953]
[1737045418077,0.59764,3347.0,3346.8,0.59766]
[1737045418478,0.59767,3346.9,3346.4,0.5552]
[1737045418675,3.2078,3347.2,3346.4,0.5552]
[1737045418875,3.2078,3347.2,3346.6,6.12084725]
[1737045419086,3.2078,3347.2,3347.1,0.59762]
[1737045419276,3.2078,3347.6,3347.0,3.2078]
[1737045419480,3.2078,3347.6,3347.5,0.59755]
[1737045419677,3.2078,3348.1,3347.2,2.91304725]
[1737045419879,3.2078,3348.1,3347.9,0.59746]
[1737045420081,3.2078,3348.1,3348.0,0.59746]
[1737045420686,3.2078,3348.6,3347.9,5.0467]
[1737045420979,3.7783,3349.1,3348.4,2.91304725]
[1737045421377,0.59732,3348.8,3348.5,0.59737]
[1737045421579,0.59732,3348.8,3348.4,1.14317]
[1737045421783,0.59737,3348.5,3348.4,0.5458]
[1737045422488,0.59743,3348.2,3347.9,2.43637]
[1737045422682,3.2078,3348.7,3347.9,1.8389]
[1737045422893,0.59741,3348.3,3348.0,0.59744]
[1737045423093,3.2078,3348.7,3347.9,5.0467]
[1737045423389,3.2078,3348.7,3348.5,0.59736]
[1737045423684,0.59738,3348.5,3348.2,0.59741]
[1737045423880,3.2078,3348.7,3348.2,0.59741]
[1737045424085,0.59736,3348.6,3348.2,0.59741]
[1737045424288,3.2078,3348.7,3348.1,2.91304725]
[1737045424489,3.2078,3348.7,3348.4,0.59737]
[1737045424883,3.2078,3348.7,3348.6,0.59735]
[1737045425090,3.2078,3349.1,3348.9,0.59729]
[1737045425277,3.2078,3349.5,3348.7,4.77454725]
[1737045425587,3.2078,3349.9,3349.4,2.91304725]
[1737045425787,3.2078,3349.9,3349.6,0.59716]
[1737045425986,3.2078,3349.9,3349.5,0.5344]
[1737045426184,3.2078,3349.9,3349.7,0.59714]
[1737045426382,0.59715,3349.7,3349.6,0.45698735]
[1737045426784,0.59719,3349.5,3349.4,0.5635]
[1737045426991,3.2078,3349.9,3349.0,0.5344]
[1737045427290,3.2078,3349.5,3349.0,0.5344]
[1737045427493,3.2078,3349.5,3349.1,0.4561882]
[1737045427494,0.59723,3349.3,3349.1,0.4561882]
[1737045427787,3.80499,3349.5,3349.2,0.59723]
[1737045428090,3.2078,3349.5,3349.2,0.59723]
[1737045428389,0.59714,3349.8,3349.4,0.59719]
[1737045428591,3.2078,3349.9,3349.2,3.2078]
[1737045429089,3.2078,3349.9,3349.8,0.59714]
[1737045429989,3.2078,3350.7,3350.2,0.59705]
[1737045430194,3.2078,3350.7,3350.0,2.91304725]
[1737045430391,0.59701,3350.5,3350.1,0.59707]
[1737045430690,3.2078,3350.3,3349.7,3.2078]
[1737045430891,0.59711,3350.0,3349.7,3.80495]
[1737045431093,0.59711,3350.0,3349.7,3.2078]
[1737045431286,0.59712,3349.9,3349.7,3.2078]
[1737045431487,3.2078,3350.3,3349.7,3.2078]
[1737045431886,0.59714,3349.8,3349.7,3.2078]
[1737045432090,3.2078,3349.9,3349.6,0.5309]
[1737045432286,3.2078,3349.9,3349.5,1.296]
[1737045432494,0.59715,3349.8,3349.5,1.89318]
[1737045432689,0.59715,3349.8,3349.5,1.296]
[1737045432894,0.59717,3349.6,3349.5,1.296]
[1737045433195,3.2078,3349.9,3349.2,1.296]
[1737045433493,3.2078,3349.9,3349.3,0.59722]
[1737045433691,0.5972,3349.5,3349.2,1.296]
[1737045433992,3.2078,3349.9,3349.3,0.45462505]
[1737045434193,3.2078,3349.9,3349.4,2.91304725]
[1737045434393,3.7552,3350.9,3349.7,6.12084725]
[1737045434594,3.7552,3350.9,3350.2,2.91304725]
[1737045434797,3.2078,3350.9,3350.8,0.59696]
[1737045435193,3.2078,3351.3,3351.2,0.59689]
[1737045435499,3.80467,3351.3,3351.2,0.59689]
[1737045435696,3.80467,3351.3,3351.1,1.296]
[1737045435893,0.59689,3351.2,3351.1,1.296]
[1737045436397,3.2078,3351.3,3351.1,1.296]
[1737045436597,3.80459,3351.8,3351.6,0.59681]
[1737045436896,0.59675,3352.0,3351.4,6.12084725]
[1737045437097,0.59675,3352.0,3351.7,0.59678]
[1737045437293,3.2078,3352.2,3351.4,6.12084725]
[1737045437605,3.80452,3352.2,3351.9,0.59674]
[1737045437787,3.2078,3352.2,3352.0,0.59674]
[1737045438094,3.2078,3352.2,3352.1,0.59673]
[1737045438292,3.2078,3352.8,3352.0,6.12084725]
[1737045438491,0.59667,3352.5,3352.2,0.5967]
[1737045438698,0.59663,3352.7,3352.3,0.59668]
[1737045438895,0.59666,3352.5,3352.1,1.13442]
[1737045439095,3.2078,3352.8,3352.1,0.5377]
[1737045439392,1.4907,3354.7,3352.7,2.91304725]
[1737045439594,3.2078,3354.8,3354.4,2.91304725]
[1737045439802,0.59628,3354.7,3354.4,2.91304725]
[1737045440096,3.2078,3354.8,3354.2,1.296]
[1737045440298,3.80406,3354.8,3354.3,0.59633]
[1737045440502,0.59628,3354.6,3354.2,1.89235]
[1737045440691,0.59628,3354.7,3354.2,1.296]
[1737045440897,0.59629,3354.6,3354.2,1.89235]
[1737045441287,3.2078,3354.8,3354.2,1.89235]
[1737045441288,3.2078,3354.8,3354.2,1.296]
[1737045441493,0.59626,3354.7,3354.2,1.296]
[1737045441693,3.2078,3354.8,3354.2,1.296]
[1737045441890,3.80405,3354.8,3354.4,0.5963]
[1737045442094,3.2078,3354.8,3354.2,1.296]
[1737045442304,0.59627,3354.7,3354.4,2.91304725]
[1737045442597,3.2078,3354.8,3354.4,2.91304725]
[1737045442997,3.2078,3354.8,3354.2,1.296]
[1737045443298,3.2078,3354.8,3354.4,2.91304725]
[1737045443799,0.59629,3354.6,3354.4,2.91304725]
[1737045443989,3.2078,3354.8,3354.4,2.91304725]
[1737045444194,3.2078,3355.2,3354.7,2.91304725]
[1737045444397,3.2078,3355.2,3355.1,2.91304725]
[1737045444600,3.80397,3355.2,3355.1,2.91304725]
[1737045444798,3.80397,3355.2,3354.8,44.30928725]
[1737045444997,3.2078,3355.2,3354.8,43.71304725]
[1737045445198,3.2078,3355.2,3354.8,40.8]
[1737045445496,0.59621,3355.0,3354.6,2.91304725]
[1737045445697,3.2078,3355.2,3354.9,2.91304725]
[1737045446100,3.2078,3355.8,3354.9,2.91304725]
[1737045446496,3.2078,3355.2,3354.9,2.91304725]
[1737045446693,3.2078,3355.6,3354.9,2.91304725]
[1737045446894,0.59621,3355.0,3354.9,2.91304725]
[1737045447205,2.08643,3355.5,3354.7,1.295]
[1737045447400,0.59622,3355.0,3354.7,1.295]
[1737045447601,0.59619,3355.1,3354.7,4.20804725]
[1737045447897,0.59621,3355.0,3354.7,4.20804725]
[1737045448103,3.2078,3355.6,3354.7,2.91304725]
[1737045448702,3.2078,3355.6,3354.6,1.294]
[1737045448703,0.59616,3355.3,3355.0,2.91304725]
[1737045448903,3.2078,3355.6,3355.0,2.91304725]
[1737045449105,0.59614,3355.4,3355.0,2.91304725]
[1737045449309,3.2078,3355.6,3355.0,2.91304725]
[1737045449310,0.59614,3355.5,3355.0,2.91304725]
[1737045449605,0.59616,3355.4,3355.0,2.91304725]
[1737045449909,0.59619,3355.1,3355.0,2.91304725]
[1737045450105,0.59617,3355.3,3355.0,2.91304725]
[1737045450309,0.59616,3355.3,3355.0,2.91304725]
[1737045450710,0.59618,3355.2,3355.0,2.91304725]
[1737045450903,3.2078,3355.6,3355.0,2.91304725]
[1737045450904,0.59616,3355.3,3355.0,2.91304725]
[1737045451212,3.2078,3355.6,3355.0,2.91304725]
[1737045451807,0.59619,3355.1,3355.0,2.91304725]
[1737045451999,3.2078,3355.6,3355.0,2.91304725]
[1737045452201,3.2078,3355.6,3355.3,2.91304725]
[1737045452608,3.2078,3355.6,3355.3,3.50919725]
[1737045452808,3.2078,3355.6,3355.4,0.59614]
[1737045453411,3.2078,3355.6,3355.4,1.89013]
[1737045453616,3.80391,3355.6,3355.4,1.294]
[1737045453814,3.2078,3355.6,3355.4,1.89013]
[1737045454108,3.80391,3355.6,3355.3,3.50918725]
[1737045454308,3.2078,3355.6,3355.4,0.59612]
[1737045454517,3.2078,3355.6,3355.5,0.59612]
[1737045454814,3.2078,3355.6,3355.3,2.91304725]
[1737045454815,3.8039,3355.6,3355.3,2.91304725]
[1737045455011,3.80391,3355.6,3355.3,2.91304725]
[1737045455210,3.80391,3355.6,3355.4,0.59614]
[1737045455417,3.80391,3355.6,3355.3,3.50919725]
[1737045455612,0.59612,3355.5,3355.3,3.50919725]
[1737045455818,3.2078,3355.6,3355.0,1.8572]
[1737045456011,0.59618,3355.2,3355.0,2.4534]
[1737045456316,0.59619,3355.1,3355.0,1.8572]
[1737045456517,0.59619,3355.1,3355.0,1.294]
[1737045456717,0.59625,3354.8,3354.7,2.91304725]
[1737045456912,0.59623,3354.9,3354.6,1.294]
[1737045457118,0.59623,3354.9,3354.8,0.59625]
[1737045457415,3.2078,3355.2,3354.7,2.91304725]
[1737045457616,0.59623,3355.0,3354.8,0.59625]
[1737045457920,3.2078,3355.2,3354.8,0.59625]
[1737045458213,3.2078,3355.2,3354.7,2.91304725]
[1737045458414,4.69811,3355.6,3354.8,0.59624]
[1737045458622,0.59622,3355.0,3354.8,0.59624]
[1737045458920,0.59621,3355.0,3354.8,41.39625]
[1737045459113,3.2078,3355.2,3354.6,1.88927]
[1737045459315,1.49032,3355.5,3354.6,1.293]
[1737045459316,3.2078,3354.7,3354.6,1.293]
[1737045459516,0.59631,3354.5,3354.3,1.17412]
[1737045459717,0.59631,3354.5,3354.4,40.8]
[1737045461221,3.80411,3354.5,3354.4,40.8]
[1737045461428,0.59639,3354.0,3353.7,0.59643]
[1737045461725,3.2078,3354.5,3354.4,0.59632]
[1737045461919,3.2078,3355.0,3354.9,0.59623]
[1737045462221,3.2078,3355.4,3355.1,0.59618]
[1737045462417,3.2078,3355.4,3355.2,3.50921725]
[1737045462613,3.2078,3355.4,3355.2,2.91304725]
[1737045462810,3.2078,3355.4,3355.1,0.59619]
[1737045463122,3.2078,3355.4,3354.6,0.5716]
[1737045463123,3.2078,3355.4,3354.7,0.59625]
[1737045463424,0.59622,3355.0,3354.8,0.2873098]
[1737045463624,0.59622,3355.0,3354.9,0.2873098]
[1737045465021,3.2078,3355.4,3354.9,0.2873098]
[1737045465227,0.59619,3355.1,3355.0,0.2873098]
[1737045465425,3.2078,3355.4,3355.0,0.2873098]
[1737045465727,3.2078,3355.4,3355.1,0.2873098]
[1737045465920,0.59616,3355.3,3355.2,0.2873098]
[1737045469225,5.0,3355.3,3353.9,0.5716]
[1737045469420,0.5964,3354.0,3353.4,4.20604725]
[1737045469626,3.2078,3354.4,3353.4,4.78324725]
[1737045469826,0.59639,3354.1,3353.8,41.39641]
[1737045470122,3.2078,3354.4,3353.8,41.39641]
[1737045470123,3.2078,3354.4,3353.8,40.8]
[1737045470326,0.59641,3353.9,3353.8,40.8]
[1737045470721,3.2078,3354.4,3353.8,44.0078]
[1737045470927,0.59636,3354.2,3354.0,3.50942725]
[1737045471229,3.2078,3354.4,3353.8,43.71304725]
[1737045471430,0.59636,3354.2,3354.0,0.59638]
[1737045472029,0.59631,3354.5,3354.2,0.59634]
[1737045472328,3.2078,3354.9,3354.2,0.59634]
[1737045472629,0.59633,3354.4,3354.2,0.59635]
[1737045472824,4.69841,3354.9,3354.1,2.91304725]
[1737045473029,2.0397,3355.1,3354.0,0.59638]
[1737045473030,0.59636,3354.2,3354.0,0.59638]
[1737045473228,3.2078,3354.5,3353.8,44.0078]
[1737045473437,3.2078,3354.5,3354.0,0.59638]
[1737045473438,0.59636,3354.2,3354.0,0.59638]
[1737045473619,3.2078,3354.5,3353.8,44.0078]
[1737045473822,1.4908,3354.4,3353.8,3.2078]
[1737045474023,0.59634,3354.3,3354.1,3.50940725]
[1737045474227,3.2078,3354.9,3354.5,0.59629]
[1737045474434,3.2078,3354.9,3354.0,1.49094]
[1737045474435,0.59626,3354.7,3354.4,3.50935725]
[1737045474636,0.59626,3354.7,3354.5,0.59629]
[1737045474832,1.49045,3355.2,3354.7,0.59626]
[1737045475029,1.49045,3355.2,3354.8,40.8]
[1737045475228,0.59628,3354.7,3354.5,1.88928]
[1737045475430,0.59628,3354.6,3354.5,1.293]
[1737045475635,0.59633,3354.3,3354.2,0.5416]
[1737045476142,0.59639,3354.0,3353.9,1.293]
[1737045476529,0.59639,3354.0,3353.5,0.5416]
[1737045476727,2.98141,3354.7,3352.8,0.5548]
[1737045476728,3.2078,3353.7,3352.8,0.5548]
[1737045476927,0.59662,3352.7,3352.6,0.5312]
[1737045477336,3.2078,3353.2,3352.6,0.5312]
[1737045477527,0.59662,3352.7,3352.6,0.5312]
[1737045477730,0.59662,3352.8,3352.6,0.5312]
[1737045478141,0.59662,3352.7,3352.4,0.59666]
[1737045478441,3.2078,3353.2,3352.3,1.293]
[1737045478442,0.59661,3352.8,3352.5,0.59665]
[1737045478734,3.2078,3353.2,3352.6,0.59663]
[1737045478938,3.2078,3353.2,3352.5,2.91304725]
[1737045479134,0.59659,3352.9,3352.6,0.59663]
[1737045479438,0.59657,3353.0,3352.8,2.91304725]
[1737045479636,0.59655,3353.1,3352.8,3.50963725]
[1737045480035,0.59658,3353.0,3352.8,2.91304725]
[1737045480341,0.59657,3353.0,3352.8,2.91304725]
[1737045480640,3.2078,3353.2,3352.8,2.91304725]
[1737045480847,3.2078,3353.2,3352.8,3.50963725]
[1737045480848,0.59656,3353.1,3352.8,3.50963725]
[1737045481036,3.80434,3353.2,3352.9,0.59657]
[1737045481339,1.49119,3353.6,3352.2,3.2078]
[1737045481340,3.2078,3353.3,3352.2,2.91304725]
[1737045481635,0.59664,3352.6,3352.5,1.293]
[1737045481839,0.59664,3352.6,3352.5,42.37594932]
[1737045482035,0.59664,3352.6,3352.5,1.57594932]
[1737045482338,0.59664,3352.6,3352.5,0.28294932]
[1737045484233,3.2078,3352.8,3351.9,0.36511093]
[1737045484439,0.5967,3352.3,3352.0,0.28211559]
[1737045484638,0.5967,3352.3,3352.1,0.28211559]
[1737045484846,0.5967,3352.3,3352.2,0.28211559]
[1737045485135,3.2078,3352.8,3352.2,0.28211559]
[1737045485341,3.2078,3353.3,3352.7,2.91304725]
[1737045485541,0.59658,3352.9,3352.8,0.28202332]
[1737045485741,3.2078,3353.3,3352.8,0.28202332]
[1737045485940,0.59654,3353.2,3352.9,0.28202332]
[1737045486248,0.59655,3353.1,3353.0,0.28202332]
[1737045486547,0.59654,3353.2,3353.0,0.28202332]
[1737045486740,0.59653,3353.2,3353.1,0.28202332]
[1737045487041,3.2078,3353.3,3352.7,1.293]
[1737045487242,0.59659,3352.9,3352.8,0.28160253]
[1737045487536,3.2078,3353.3,3352.8,0.28160253]
[1737045487741,3.2078,3353.3,3352.7,1.293]
[1737045487943,3.2078,3353.3,3352.8,0.28149112]
[1737045488142,0.59658,3353.0,3352.7,1.293]
[1737045488343,0.59658,3353.0,3352.8,0.28146756]
[1737045488543,0.59659,3352.9,3352.7,1.293]
[1737045488743,0.59659,3352.9,3352.8,0.28147265]
[1737045488940,3.2078,3353.3,3352.8,0.28147265]
[1737045489146,3.2078,3353.3,3352.7,1.293]
[1737045489447,0.59656,3353.1,3352.8,0.28146278]
[1737045489647,3.2078,3353.3,3352.7,1.293]
[1737045489951,0.59654,3353.2,3352.8,3.79114021]
[1737045490244,3.2078,3353.3,3352.8,3.79114021]
[1737045490245,3.2078,3353.3,3353.2,0.59653]
[1737045490440,0.59646,3353.6,3353.2,0.87791095]
[1737045490647,0.59648,3353.5,3353.1,0.59653]
[1737045490839,3.2078,3353.8,3352.9,0.5698]
[1737045491146,3.2078,3353.8,3353.1,0.59654]
[1737045491445,0.59646,3353.6,3352.9,0.5698]
[1737045491748,0.59653,3353.2,3353.0,0.28151078]
[1737045492052,0.59655,3353.1,3352.9,0.5698]
[1737045492248,3.2078,3353.3,3352.2,3.2078]
[1737045492548,0.59664,3352.7,3352.4,3.79134962]
[1737045492745,0.59664,3352.7,3352.5,0.87828237]
[1737045492948,3.2078,3353.3,3352.6,0.28163237]
[1737045493150,0.59659,3352.9,3352.4,2.91304725]
[1737045493444,3.2078,3353.3,3352.5,0.28169881]
[1737045493649,3.2078,3353.3,3352.4,2.91304725]
[1737045493650,0.59659,3352.9,3352.7,0.59661]
[1737045494352,0.5966,3352.8,3352.6,0.59663]
[1737045494550,0.5966,3352.8,3352.6,0.83523]
[1737045495048,0.59662,3352.7,3352.6,0.3789]
[1737045495752,0.59662,3352.7,3352.6,1.572]
[1737045495945,0.59662,3352.7,3352.6,1.8106]
[1737045496147,0.59662,3352.7,3352.6,3.1378]
[1737045497854,3.2078,3352.9,3352.6,3.1378]
[1737045498354,0.59662,3352.7,3352.6,3.1378]
[1737045500356,3.2078,3353.3,3352.6,3.1378]
[1737045500748,3.2078,3353.3,3352.7,0.28246258]
[1737045500749,0.59659,3352.9,3352.7,0.28246258]
[1737045500949,0.59658,3352.9,3352.8,0.28243934]
[1737045501853,3.2078,3353.3,3352.6,3.1378]
[1737045501854,0.59662,3352.7,3352.6,3.1378]
[1737045502452,0.59653,3353.2,3352.6,3.42056841]
[1737045502650,0.59661,3352.8,3352.7,0.28276841]
[1737045503154,0.59659,3352.9,3352.7,0.28276841]
[1737045503354,0.59659,3352.9,3352.6,3.73444]
[1737045503355,0.59659,3352.9,3352.8,0.28276841]
[1737045503948,3.2078,3353.3,3352.6,3.1378]
[1737045504151,2.91304725,3353.1,3352.6,3.1378]
[1737045504361,0.59662,3352.7,3352.6,3.1378]
[1737045507451,5.59662,3352.7,3352.6,3.1378]
[1737045507645,0.59662,3352.7,3352.6,3.1378]
[1737045509549,5.0,3352.7,3351.0,0.5011]
[1737045509744,6.63574725,3352.9,3351.2,0.28417943]
[1737045509745,0.59686,3351.4,3351.2,0.28417943]
[1737045509949,0.59686,3351.4,3351.3,0.28417943]
[1737045510547,0.59681,3351.7,3351.3,0.28417943]
[1737045510751,3.2078,3351.8,3351.4,0.28417943]
[1737045510752,0.59683,3351.5,3351.4,0.28417943]
[1737045511452,0.59681,3351.7,3351.4,0.28417943]
[1737045511658,0.59681,3351.7,3351.5,0.28417943]
[1737045511960,0.5968,3351.7,3351.6,0.28417943]
[1737045517863,0.59685,3351.4,3351.3,1.6709]
[1737045518160,3.80465,3351.4,3351.3,1.6709]
[1737045520764,11.71769725,3351.4,3351.3,1.64016051]
[1737045521267,11.71769725,3351.4,3351.3,1.01642051]
[1737045521568,6.71769725,3351.4,3351.3,1.01642051]
[1737045521768,11.71769725,3351.4,3351.3,1.01642051]
[1737045522265,11.71769725,3351.4,3350.1,4.58612725]
[1737045522266,11.12084725,3351.4,3350.1,3.98904725]
[1737045522471,3.2078,3350.7,3350.2,0.28348762]
[1737045522764,3.2078,3350.7,3350.3,0.28348762]
[1737045522970,3.2078,3350.7,3350.4,3.79355487]
[1737045523162,0.59699,3350.6,3350.5,0.28348762]
[1737045523377,0.59699,3350.6,3350.5,1.47728762]
[1737045523564,0.59699,3350.6,3350.5,1.1938]
[1737045525068,5.0,3350.6,3350.1,0.2605]
[1737045525370,3.80486,3350.2,3350.1,0.2605]
[1737045526570,1.49282,3349.9,3349.2,0.5417]
[1737045526766,0.59735,3348.6,3348.5,7.76769748]
[1737045526963,0.59735,3348.6,3348.5,0.28353065]
[1737045527168,3.2078,3348.9,3348.3,1.0744]
[1737045527370,3.80518,3348.4,3348.3,1.0744]
[1737045527875,3.80518,3348.4,3348.3,1.1105]
[1737045528581,3.80518,3348.4,3348.3,0.0361]
[1737045531172,3.2078,3348.4,3348.3,0.0361]
[1737045531678,3.2078,3349.3,3348.8,0.59731]
[1737045531987,3.2078,3349.3,3348.7,2.91304725]
[1737045532189,0.59728,3349.1,3348.7,3.51036725]
[1737045532385,3.2078,3349.3,3348.8,0.44950442]
[1737045532688,0.5972,3349.5,3349.1,0.59725]
[1737045532890,0.59719,3349.5,3349.1,0.59725]
[1737045533079,0.5972,3349.5,3349.0,6.71811725]
[1737045533279,0.5972,3349.5,3349.1,0.59725]
[1737045533492,0.59719,3349.6,3349.1,1.04675442]
[1737045533682,0.5972,3349.5,3349.1,0.44950442]
[1737045533887,3.2078,3349.7,3349.2,0.44950442]
[1737045534181,0.59726,3349.1,3348.7,3.51036725]
[1737045534485,0.59729,3349.0,3348.7,2.91304725]
[1737045534790,3.2078,3349.7,3348.7,0.5346]
[1737045534791,3.2078,3349.3,3348.7,0.5346]
[1737045534993,0.59731,3348.8,3348.7,0.5346]
[1737045535192,0.59727,3349.1,3348.7,1.13193]
[1737045535492,0.5973,3348.9,3348.7,0.5346]
[1737045535679,0.59731,3348.8,3348.7,0.5346]
[1737045536487,1.49315,3349.2,3348.6,3.2078]
[1737045536488,0.59733,3348.7,3348.6,3.2078]
[1737045536985,0.59735,3348.6,3348.5,0.5277]
[1737045537387,0.59738,3348.4,3348.3,0.5707]
[1737045538793,0.59738,3348.4,3348.3,0.0361]
[1737045540892,0.59738,3348.4,3347.4,6.12084725]
[1737045540893,0.5976,3347.2,3346.8,6.12084725]
[1737045541193,0.59761,3347.2,3346.9,0.5431]
[1737045541402,3.2078,3347.6,3346.9,0.5431]
[1737045541690,0.59763,3347.1,3346.9,0.99361627]
[1737045541891,0.59763,3347.0,3346.9,0.99361627]
[1737045542094,3.2078,3347.6,3346.9,0.5431]
[1737045542300,3.2078,3347.6,3346.9,1.14074]
[1737045542501,0.59754,3347.6,3347.2,3.80539]
[1737045542793,0.59756,3347.5,3347.2,3.2078]
[1737045542990,3.2078,3347.6,3346.9,0.5431]
[1737045543189,0.59763,3347.0,3346.9,0.5431]
[1737045543389,0.59763,3347.1,3346.9,0.5431]
[1737045543597,3.2078,3347.2,3346.9,0.5431]
[1737045543799,0.59763,3347.1,3346.9,0.5431]
[1737045544198,3.2078,3347.2,3346.9,0.5431]
[1737045544602,0.59763,3347.0,3346.9,0.5431]
[1737045544791,0.59763,3347.1,3346.9,0.5431]
[1737045545098,0.59763,3347.0,3346.9,0.5431]
[1737045545292,3.2078,3347.2,3346.9,0.5431]
[1737045545690,0.59763,3347.0,3346.9,0.5431]
[1737045546097,3.2078,3347.2,3346.4,3.2078]
[1737045546297,0.5978,3346.1,3346.0,4.269]
[1737045546501,0.5978,3346.1,3346.0,1.0612]
[1737045546795,3.2078,3346.8,3346.0,4.269]
[1737045546995,3.2078,3347.2,3346.5,2.91304725]
[1737045547397,3.2078,3346.7,3346.0,1.0612]
[1737045547702,0.59776,3346.4,3346.0,1.0612]
[1737045547895,3.2078,3346.7,3346.0,1.0612]
[1737045547896,0.59777,3346.3,3346.0,1.0612]
[1737045548095,0.59773,3346.5,3346.2,2.91304725]
[1737045548300,3.2078,3346.7,3346.2,2.91304725]
[1737045548501,0.59772,3346.6,3346.2,3.51082725]
[1737045548801,0.59776,3346.3,3346.2,2.91304725]
[1737045549002,0.59778,3346.2,3346.0,1.0612]
[1737045549203,3.2078,3347.1,3346.0,1.65901]
[1737045549500,3.2078,3347.1,3346.3,3.80555]
[1737045549501,0.5977,3346.7,3346.3,3.80555]
[1737045549699,3.2078,3347.1,3346.5,2.91304725]
[1737045550093,0.59767,3346.8,3346.5,2.91304725]
[1737045550497,0.59766,3346.9,3346.5,3.51076725]
[1737045550797,3.2078,3347.1,3346.8,2.91304725]
[1737045550996,3.2078,3347.1,3346.9,1.0674]
[1737045551201,3.2078,3347.1,3346.3,4.5018]
[1737045551402,0.59774,3346.4,3346.3,3.2078]
[1737045551703,0.5978,3346.1,3345.6,2.91304725]
[1737045552002,3.2078,3346.0,3345.3,2.91304725]
[1737045552195,3.2078,3346.0,3345.4,0.5397]
[1737045552196,0.59787,3345.7,3345.4,0.5397]
[1737045552391,3.2078,3346.0,3345.4,0.5397]
[1737045552595,0.59783,3345.9,3345.6,0.59788]
[1737045552805,0.59783,3345.9,3345.5,3.96244774]
[1737045553004,0.59777,3346.3,3345.9,0.59783]
[1737045553307,3.2078,3346.4,3346.0,0.4952]
[1737045553308,0.5978,3346.1,3346.0,0.4952]
[1737045553701,0.59778,3346.2,3346.0,0.4952]
[1737045554097,0.59778,3346.2,3346.1,0.5059]
[1737045554294,3.80555,3346.4,3346.1,0.5059]
[1737045554497,0.59777,3346.3,3346.1,0.5059]
[1737045554704,0.59778,3346.2,3346.1,0.5059]
[1737045555302,0.59777,3346.3,3346.1,0.5059]
[1737045555509,0.59778,3346.2,3346.1,0.5059]
[1737045556198,0.59778,3346.2,3346.1,0.95758923]
[1737045556604,0.59777,3346.3,3346.1,0.95758923]
[1737045556805,0.59778,3346.2,3346.1,0.95758923]
[1737045557397,0.59778,3346.2,3346.1,0.45168923]
[1737045558110,3.2078,3346.4,3346.1,0.45168923]
[1737045558711,0.59776,3346.3,3346.2,0.45168923]
[1737045559609,3.2078,3346.4,3346.2,0.45168923]